Cogmind - Beta 13 @@@ ROGUE MODE // 2024.03.16 @ 14:33:23 Player: darki Result: Destroyed by D-53 Grenadier with Mini Grenade Launcher Performance ------------- Evolutions (0) 0 Regions Visited (2) 400 Robots Destroyed (22) 110 Value Destroyed (289) 289 Prototype IDs (2) 40 Alien Tech Used (0) 0 Bonus (-145) -145 TOTAL SCORE: 694 Bonus ------- Friendly Fire -145 Cogmind --------- Core Integrity 0/250 Matter 218/300 Energy 16/250 System Corruption 1% Temperature Cool (0) Movement Flying (117) Ox1 Location -10/Mines Parts ------- > --- POWER (1) -------- Ion Engine > --- PROPULSION (2) --- Flight Unit Flight Unit > --- UTILITY (2) ------ Small Storage Unit Improved Terrain Scanner > --- WEAPON (2) ------- (None) > --- INVENTORY (8) ---- Flight Unit Flight Unit Weight Redist. System Structural Scanner Propulsion Shielding Beam Cannon Beam Cannon Beam Cannon Peak State ------------ > --- POWER ------------ Ion Engine > --- PROPULSION ------- Light Treads Light Treads > --- UTILITY ---------- Heat Sink Large Storage Unit > --- WEAPON ----------- Beam Cannon Shotgun > --- INVENTORY -------- Ion Engine Flight Unit Flight Unit Flight Unit Flight Unit Small Storage Unit Weight Redist. System Structural Scanner Visual Processing Unit Improved Terrain Scanner Propulsion Shielding Beam Cannon Beam Cannon Beam Cannon Shotgun [Rating: 10] Favorites ----------- Power Ion Engine Engine Ion Engine Propulsion Light Treads Treads Light Treads Leg Aluminum Leg Flight Unit Flight Unit Utility Large Storage Unit Device Heat Sink Storage Large Storage Unit Weapon Beam Cannon Energy Gun Small Laser Energy Cannon Beam Cannon Ballistic Gun Assault Rifle Build | -11 -10 -10 ------- Run | Yrd Mat Min Slots Evolved . | . . . Power . | . . . Propulsion . | . . . Utility . | . . . Weapon . | . . . Parts Attached 16 | 1 8 7 Power 2 | . 1 1 Engine 2 | . 1 1 Core . | . . . Reactor . | . . . Propulsion 4 | . 2 2 Treads 2 | . 2 . Leg . | . . . Wheel . | . . . Hover . | . . . Flight 2 | . . 2 Utility 5 | 1 2 2 Device 3 | 1 1 1 Storage 2 | . 1 1 Processor . | . . . Hackware . | . . . Protection . | . . . Artifact . | . . . Weapon 5 | . 3 2 Energy Gun . | . . . Energy Cannon 3 | . 3 . Ballistic Gun 2 | . . 2 Ballistic Cannon . | . . . Launcher . | . . . Special Weapon . | . . . Impact Weapon . | . . . Slashing Weapon . | . . . Piercing Weapon . | . . . Special Melee Weapon . | . . . Unidentified Prototypes . | . . . Parts Lost 2 | . . 2 Power . | . . . Propulsion 1 | . . 1 Utility . | . . . Weapon 1 | . . 1 Highest Loss Streak 2 | . . 2 To Critical Strikes . | . . . Average Slot Usage (%) 99 | . 99 99 Engine 14 | . 14 14 Treads 26 | . 26 27 Leg 1 | . 1 . Device 11 | . 10 14 Storage 16 | . 16 14 Energy Cannon 25 | . 26 25 Ballistic Gun 1 | . . 1 Naked Turns . | . . . Heaviest Build 36 | 14 36 32 Greatest Support 40 | 20 40 40 Greatest Overweight (x) 1 | . . 1 Average Overweight (x) . | . . . Largest Inventory Capacity 15 | 8 15 15 Average Capacity 14 | 8 14 14 Most Carried 15 | 6 15 15 Average Carried 13 | 6 12 14 Final Capacity 15 | 8 15 8 Final Carried 15 | 6 15 8 Class Distribution -------------------- 100% | Mutant Dominant Class ---------------- Mutant | -10/Materials Mutant | -10/Mines Resources | -11 -10 -10 ----------- Run | Yrd Mat Min Matter Collected 329 | 225 80 24 Remotely . | . . . Salvage Created 713 | 96 564 53 Parts 50 | 4 45 1 Haulers Intercepted 2 | . 2 . Recyclers Shooed 1 | . 1 . Parts Field Recycled . | . . . Retrieved Matter . | . . . Parts Self-Destructed . | . . . Prevented . | . . . Kills | -11 -10 -10 ------- Run | Yrd Mat Min Combat Hostiles Destroyed 14 | . 12 2 Guns 1 | . . 1 Cannons 13 | . 12 1 Classes Destroyed 8 | 2 5 1 Tunneler 1 | 1 . . Hauler 2 | . 2 . Recycler 3 | 1 2 . Operator 1 | . 1 . Watcher 2 | . 2 . Swarmer 9 | . 9 . Grunt 4 | . 3 1 Assembled 2 | . . 2 Best Kill Streak 7 | 2 7 2 Combat Bots Only 5 | . 5 2 Max Kills in Single Turn 2 | 1 2 1 Gunslinging . | . . . Exploded . | . . . Melee . | . . . Uniques/NPCs Destroyed . | . . . Combat | -11 -10 -10 -------- Run | Yrd Mat Min Hostile Shots Fired 80 | . 52 28 Missed 16 | . 9 7 Damage Taken 899 | . 376 523 Core 274 | . 82 192 Absorbed by Shields . | . . . Core Remaining (%) 100 | 100 . . Volleys Fired 42 | 5 31 6 Largest 2 | 2 2 2 Hottest 120 | 60 120 120 Shots Fired 84 | 10 62 12 Gun 20 | 10 . 10 Cannon 64 | . 62 2 Launcher . | . . . Special . | . . . Kinetic 15 | 5 . 10 Thermal 69 | 5 62 2 Explosive . | . . . Electromagnetic . | . . . Robot Hit Streak 8 | 4 8 4 Robot Miss Streak 4 | 1 2 4 Penetration Max . | . . . Secondary Targets . | . . . Shots Hit Robots 51 | 7 35 9 Core Hits 29 | 3 19 7 Critical Kills 1 | 1 . . Critical Parts Destroyed . | . . . Critical Strikes 1 | 1 . . Destroy 1 | 1 . . Melee Attacks . | . . . Impact . | . . . Slashing . | . . . Piercing . | . . . Sneak Attacks . | . . . Combat Hostiles . | . . . Follow-up Attacks . | . . . Damage Inflicted 876 | 82 626 168 Guns 215 | 82 . 133 Cannons 661 | . 626 35 Explosions . | . . . Melee . | . . . Ramming . | . . . Kinetic 170 | 37 . 133 Thermal 706 | 45 626 35 Explosive . | . . . Electromagnetic . | . . . Impact . | . . . Slashing . | . . . Piercing . | . . . Highest Corruption 1 | . . 1 Average Corruption 1 | . . 1 Corruption Purged . | . . . Corruption Blocked . | . . . Effects 1 | . . 1 Matter Fused 1 | . . 1 Overload Shots . | . . . Overflow Damage 15 | . 15 . Projectiles 15 | . 15 . Explosions . | . . . Melee . | . . . Knockbacks . | . . . Impact . | . . . Kinetic . | . . . Secondary . | . . . Self-Inflicted Damage . | . . . Shots . | . . . Rammed . | . . . Targets Rammed . | . . . Kicked . | . . . Crushed . | . . . Highest Temperature 372 | . 372 30 Average Temperature 131 | . 134 15 Received Heat Transfer 66 | . 66 . Effects 2 | . 2 . Energy Bleed 1 | . 1 . Short Circuit 1 | . 1 . Siege Activations . | . . . Robots Corrupted . | . . . Combat Hostiles . | . . . Parts Fried . | . . . Impact Corruptions . | . . . Robots Melted . | . . . Combat Hostiles . | . . . Parts Melted 1 | . 1 . Heat Transferred 1506 | 100 1332 74 Parts Sabotaged . | . . . Parts Stolen . | . . . Parts Stripped . | . . . Power Chain Reactions . | . . . Alert | -11 -10 -10 ------- Run | Yrd Mat Min Peak Influence 241 | 10 241 31 Initial 31 | . 6 31 Average 84 | 7 115 28 Maximum Alert Level 1 | . 1 . Low Security (%) 85 | 100 78 100 Level 1 14 | . 21 . Level 2 . | . . . Level 3 . | . . . Level 4 . | . . . Level 5 . | . . . High Security . | . . . Max Security . | . . . Squads Dispatched 1 | . 1 . Investigation . | . . . Extermination . | . . . Reinforcement 1 | . 1 . Assault . | . . . Garrison . | . . . Intercept . | . . . Searches Triggered . | . . . Construction Impeded . | . . . Haulers Reinforced . | . . . Active Scanning Responses . | . . . Cargo Convoy Interrupts . | . . . Stealth | -11 -10 -10 --------- Run | Yrd Mat Min Distress Signals 1 | . 1 . Communications Jammed . | . . . Distress Signals . | . . . Times Spotted 37 | . 16 21 Peak Tracking Total 11 | . 5 11 Tactical Retreats . | . . . Traps | -11 -10 -10 ------- Run | Yrd Mat Min Traps Triggered . | . . . Indirectly . | . . . Trap Hack Attempts . | . . . Triggered . | . . . Disarmed . | . . . Reprogrammed . | . . . Reused . | . . . Traps Extracted . | . . . Installed . | . . . Triggered . | . . . Machines | -11 -10 -10 ---------- Run | Yrd Mat Min Machines Disabled 2 | . 2 . Max in Single Turn 1 | . 1 . Machines Repaired . | . . . Machines Dismantled . | . . . Machines Sabotaged . | . . . Overloaded Fab Kills . | . . . Hacking | -11 -10 -10 --------- Run | Yrd Mat Min Machines Accessed 5 | . 5 . Terminals 5 | . 5 . Fabricators . | . . . Repair Stations . | . . . Recycling Units . | . . . Scanalyzers . | . . . Garrison Access . | . . . Total Hacks 13 | . 13 . Successful 5 | . 5 . Failed 7 | . 7 . Catastrophic 2 | . 2 . Database Lockouts 1 | . 1 . Manual 12 | . 12 . Terminals 13 | . 13 . Fabricators . | . . . Repair Stations . | . . . Recycling Units . | . . . Scanalyzers . | . . . Garrison Access . | . . . Terminal Hacks 5 | . 5 . Robot Analysis 3 | . 3 . Prototype ID Bank 1 | . 1 . Hauler Manifests 1 | . 1 . Fabricator Hacks . | . . . Repair Station Hacks . | . . . Recycling Unit Hacks . | . . . Scanalyzer . | . . . Garrison Access Hacks . | . . . Unauthorized Hacks . | . . . Terminals . | . . . Fabricators . | . . . Repair Stations . | . . . Recycling Units . | . . . Scanalyzers . | . . . Garrison Access . | . . . Data Cores Recovered . | . . . Used . | . . . Hacking Detections 4 | . 4 . Full Trace Events . | . . . Feedback Events . | . . . Feedback Blocked . | . . . Robot Schematics Acquired . | . . . Robots Built . | . . . Authchips . | . . . Time . | . . . Total Robot Build Rating . | . . . Part Schematics Acquired . | . . . Parts Built . | . . . Authchips . | . . . Time . | . . . Total Part Build Rating . | . . . Parts Repaired . | . . . Time . | . . . Parts Recycled . | . . . Recycled Matter . | . . . Retrieved Matter . | . . . Retrieved Components . | . . . Parts Scanalyzed . | . . . Part Schematics Acquired . | . . . Parts Damaged . | . . . Bothacking | -11 -10 -10 ------------ Run | Yrd Mat Min Used RIF Installer . | . . . Robots Hacked . | . . . Non-combat . | . . . Combat . | . . . Robot Hacks Applied . | . . . Relay Couplers Released . | . . . Fabnet Peak Effective % . | . . . Robots Rewired . | . . . Allies Hacked . | . . . Hacks Repelled . | . . . Allies | -11 -10 -10 -------- Run | Yrd Mat Min Total Allies 3 | . . 3 Largest Group 3 | . . 3 Highest-Rated Group 40 | . . 40 Highest-Rated Ally 16 | . . 16 Total Orders 5 | . . 5 STAY 4 | . . 4 FOLLOW 1 | . . 1 Ally Attacks 25 | . . 25 Total Damage 260 | . . 260 Kills 5 | . . 5 Allies Corrupted . | . . . Allies Melted . | . . . Intel | -11 -10 -10 ------- Run | Yrd Mat Min Robot Analysis Total 3 | . 3 . Derelict Logs Recovered . | . . . Drone Launches . | . . . Drone Recoveries . | . . . Exploration | -11 -10 -10 ------------- Run | Yrd Mat Min Turns Passed 1430 | 48 942 440 Spaces Moved 768 | 25 495 248 Core . | . . . Treads 702 | . 454 248 Legs 66 | 25 41 . Wheels . | . . . Hover . | . . . Flight . | . . . Fastest Speed 120 | 120 120 160 Average Speed 156 | 120 156 160 Slowest Speed 240 | 120 160 240 Overloaded Moves . | . . . Propulsion Burnouts . | . . . Robots Hopped . | . . . Cave-ins Triggered . | . . . Exploration Rate (%) 41 | 3 87 35 Regions Visited 2 Branch Regions 1 Pre-discovered Areas . | . . . Known Exits Taken . | . . . Unknown Exits Taken 2 | 1 1 . Scrap Searched 1 | . . 1 Spaces Dug . | . . . Terrain Destroyed 2 | . 2 . Melee . | . . . Projectile . | . . . AOE 2 | . 2 . Terrain Rammed . | . . . Walls Destroyed . | . . . Machines Disabled . | . . . Actions | -11 -10 -10 --------- Run | Yrd Mat Min Total 915 | 32 604 279 Wait 59 | 2 45 12 Move 766 | 24 494 248 Hop . | . . . Pick Up 15 | . 14 1 Fast Attach 5 | 1 4 . Attach 4 | . . 4 Detach 2 | . 2 . Swap 7 | . 4 3 Drop 15 | . 10 5 Fire 42 | 5 31 6 Melee . | . . . Ram . | . . . Kick . | . . . Crush . | . . . Escape Stasis . | . . . Rewire . | . . . Trap . | . . . Miscellaneous . | . . . Route ------- -11/Scrapyard -10/Materials (discovered 3 exits: [*Mat x2] / [*Min]) -10/Mines (discovered 1 exit: [*Mat]) History --------- Turn | Location | Event 1 | -11/Scrapyard | Discovered new exit (range 3) 49 | -11/Scrapyard | Entered Materials 301 | -10/Materials | Build established: Mutant 432 | -10/Materials | Discovered new exit (range 11) 790 | -10/Materials | Discovered new exit (range 12) 867 | -10/Materials | Central database locked down 884 | -10/Materials | Discovered new exit (range 15) 991 | -10/Materials | Entered Mines 1065 | -10/Mines | Discovered new exit (range 16) 1115 | -10/Mines | Assisted by bots powering up and referring to "LRC-V3" 1384 | -10/Mines | Assembled infested the area 1424 | -10/Mines | Core integrity fell below 50% 1428 | -10/Mines | Core integrity fell below 20% 1431 | -10/Mines | Destroyed by D-53 Grenadier with Mini Grenade Launcher Last Messages --------------- 01419_ as-84263 destroyed. 01419_ as-57334 destroyed. 01419_ as-94905 destroyed. 01419_ Trooper 1b destroyed. 01419_ as-03927 destroyed. 01421_ Dropped Lgt. Treads. 01421_ as-70258 destroyed. 01421_ Dropped Ion Engine. 01422_ Dropped Heat Sink. 01422_ Shotgun destroyed. 01423_ Dropped Shotgun. 01424_ System corrupted: Matter fused (-6). 01425_ The unstable cave ceiling collapses. 01426_ R-06 Scavenger collects Shotgun. 01427_ as-01458 destroyed. 01429_ as-12104 destroyed. 01429_ R-06 Scavenger collects Lrg. Storage Unit. 01430_ as-47959 destroyed. 01430_ as-69773 destroyed. Map ----- +----------------------------------------------------+ | ??????????????# # ##???????? | | ?????????????## ## ##????????? | | ?????????????# ## ### #?????????? | | ?????????????# #### #?# #?????????? | | ?????????????## ##??## ##?# #?????????? | | ??????????????# #????###??# #?????????? | | ??????????????# #?????????# #?????????? | | ??????????????# ###???????# #?????????? | | ??????????????# ####????# #?????????? | | ?????????????## ##???# #?????????? | | ?????????????# ##### #?????????? | | ?????????????# #?????????? | | ?????????????## #?????????? | | ??????????????### #######?????????? | | ????????????????## ##?????????????? | | ????????????? ???# #?????????????? | | ?????????????# ??# #?????????????? | | ?????????????# ## #?????????????? | | ?????????????# ##??????#??????? | | ?????????????# ###??##? ##?????? | | ?????????????##### %# ### # ##????? | | ?????????????????# ##???? | | ????????????###### d #???? | | ??????????# t #???? | | ??????????# ####### d #????? | | ??????????????????# r@] #????? | | ??????????????????# #????? | | ??????????????????# ##????? | | ??????????????????## #????? | | ???????????????????###### #????? | | ???????????????????????### #???? | | ????????????????? ????????## #???? | | ???????????????????????????? ##???? | | ????????????????????????????# #????? | | ?????????????????????????????### #????? | | ???????????????????????????????? #????? | | ????????????????#???????????????? ##????? | | ??????????????????????????????????#?????? | | ????????????????????????????????????????? | | ????????????????????????????????????????? | | ????????????????????????????????????????? | | ????????????????????????????????????????? | | ????????????????????????????????????????? | | ????????????????????????????????????????? | | ????????????????????????????????????????? | | ????????????????????????????????????????? | | | | | | | | | +----------------------------------------------------+ Best States ------------- Heat Dissipation 35 Energy Generation 10 Energy Capacity 250 Matter Stores 300 Matter Capacity 300 Sight Range 16 Terrain Scan Range 16 Terrain Scan Density 10 Evasion (%) 55 Recoil Reduction 2 Item Schematics ----------------- None Robot Schematics ------------------ None Fabricated ------------ Nothing Alien Tech Used ----------------- None Achievements -------------- None Challenges ------------ None Game ------ Seed TractorSeismicImmobilizer Manual? 0 Play Time 00:12:57 Cumulative 163.0 hours Start 2024.03.16 @ 14:23:39 End 2024.03.16 @ 14:33:23 Sessions 1 Manual Loads 0 Difficulty Rogue Special Mode None Game No. 173 Rogue 173 Adventurer 0 Explorer 0 Win Type - Total 1 Types 1/0/0/0/0/0/0/0/0 Lore% 53 Gallery% 70 Achievement% 55 Wizard Run 0 Options --------- Layout 1 ASCII 0 Keyboard 0 Movement Numpad Keybinds 0 Fullscreen 1 Font 24/Smallcaps Map View 50x35 Zoom Use 0% Tactical HUD 1 Map Filters NONE Filters NONE Steam 1 RUN: e679292f-0892-4d34-b02d-390d1d4deff1